Cogmind - Beta 14 @@@ ROGUE MODE // 2025.02.28 @ 13:08:21 Player: Scringis Result: Self-destructed Performance ------------- Evolutions (1) 500 Regions Visited (2) 400 Robots Destroyed (27) 135 Value Destroyed (817) 817 Prototype IDs (1) 20 Alien Tech Used (0) 0 Bonus (8) 8 TOTAL SCORE: 1880 Bonus ------- High Alert Combat Kills 8 Cogmind --------- Core Integrity 307/400 Matter 300/300 Energy 250/250 System Corruption 0% Temperature Cool (0) Movement Treading (160) Location -9/Materials Parts ------- > --- POWER (1) -------- Ion Engine > --- PROPULSION (2) --- Light Treads Light Treads > --- UTILITY (3) ------ Large Storage Unit Improved Signal Interpreter Core Shielding > --- WEAPON (3) ------- Heavy EM Shotgun Heavy EM Shotgun Shotgun > --- INVENTORY (15) --- Improved Ion Engine Improved Signal Interpreter Hacking Suite Grenade Launcher Grenade Launcher Peak State ------------ > --- POWER ------------ Ion Engine > --- PROPULSION ------- Improved Aluminum Leg > --- UTILITY ---------- Large Storage Unit Improved Signal Interpreter Light Armor Plating > --- WEAPON ----------- Heavy EM Shotgun Heavy EM Shotgun Shotgun > --- INVENTORY -------- Improved Ion Engine Light Treads Improved Signal Interpreter Hacking Suite Grenade Launcher [Rating: 19] Favorites ----------- Power Ion Engine Engine Ion Engine Propulsion Light Treads Treads Light Treads Leg Improved Aluminum Leg Utility Large Storage Unit Storage Large Storage Unit Processor Improved Signal Interpreter Protection Light Armor Plating Weapon Heavy EM Shotgun Energy Gun Heavy EM Shotgun Ballistic Gun Assault Rifle Build | -11 -10 -9 ------- Run | Yrd Mat Mat Slots Evolved 2 | . . 2 Power . | . . . Propulsion . | . . . Utility 1 | . . 1 Weapon 1 | . . 1 Parts Attached 19 | 7 2 10 Power 2 | 1 . 1 Engine 2 | 1 . 1 Core . | . . . Reactor . | . . . Propulsion 5 | 2 . 3 Treads 4 | 2 . 2 Leg 1 | . . 1 Wheel . | . . . Hover . | . . . Flight . | . . . Utility 5 | 1 2 2 Device . | . . . Storage 2 | 1 1 . Processor 1 | . . 1 Hackware . | . . . Protection 2 | . 1 1 Artifact . | . . . Weapon 7 | 3 . 4 Energy Gun 5 | 2 . 3 Energy Cannon . | . . . Ballistic Gun 2 | 1 . 1 Ballistic Cannon . | . . . Launcher . | . . . Special Weapon . | . . . Impact Weapon . | . . . Slashing Weapon . | . . . Piercing Weapon . | . . . Special Melee Weapon . | . . . Unidentified Prototypes 1 | . . 1 Parts Lost 3 | . . 3 Power . | . . . Propulsion 2 | . . 2 Utility . | . . . Weapon 1 | . . 1 Highest Loss Streak 1 | . . 1 To Critical Strikes . | . . . Average Slot Usage (%) 93 | . 94 92 Engine 11 | . 14 11 Treads 22 | . 28 19 Storage 11 | . 14 11 Processor 7 | . . 10 Protection 10 | . 8 11 Energy Gun 18 | . 14 19 Ballistic Gun 10 | . 14 8 Peak Build Rating 19 | 6 7 19 Average Rating 13 | 3 6 16 On Entrance 4 | . 6 7 Naked Turns . | . . . Heaviest Build 39 | 12 30 39 Greatest Support 40 | 40 40 40 Greatest Overweight (x) 11 | . . 11 Average Overweight (x) . | . . . Largest Inventory Capacity 15 | 8 15 15 Average Capacity 12 | 7 8 15 Most Carried 6 | 5 3 6 Average Carried 3 | 1 1 4 Final Capacity 15 | 8 15 15 Final Carried 5 | 1 2 5 Class Distribution -------------------- 60% | Mutant 39% | Tank Dominant Class ---------------- Mutant | -10/Materials Tank | -9/Materials Resources | -11 -10 -9 ----------- Run | Yrd Mat Mat Matter Collected 490 | 251 74 165 Remotely . | . . . Salvage Created 1049 | . 216 833 Parts 70 | . 14 56 Haulers Intercepted . | . . . Recyclers Shooed 1 | . . 1 Parts Field Recycled . | . . . Retrieved Matter . | . . . Parts Self-Destructed . | . . . Prevented . | . . . Kills | -11 -10 -9 ------- Run | Yrd Mat Mat Combat Hostiles Destroyed 21 | . 5 16 Guns 17 | . 4 13 AOE 4 | . 1 3 Classes Destroyed 7 | . 1 6 Worker 1 | . . 1 Recycler 1 | . . 1 Operator 3 | . . 3 Watcher 1 | . . 1 Swarmer 3 | . . 3 Grunt 13 | . 5 8 Sentry 5 | . . 5 Best Kill Streak 3 | . 2 3 Combat Bots Only 3 | . 2 3 Max Kills in Single Turn 3 | . 1 3 Gunslinging . | . . . Exploded 1 | . 1 1 Melee . | . . . Uniques/NPCs Destroyed . | . . . Combat | -11 -10 -9 -------- Run | Yrd Mat Mat Hostile Shots Fired 86 | . 27 59 Missed 23 | . 9 14 Damage Taken 895 | . 235 660 Core 123 | . 30 93 Absorbed by Shields . | . . . Core Remaining (%) 94 | 100 88 . Volleys Fired 50 | . 15 35 Largest 3 | . 2 3 Hottest 123 | . 60 123 Shots Fired 104 | . 30 74 Gun 104 | . 30 74 Cannon . | . . . Launcher . | . . . Special . | . . . Kinetic 34 | . 15 19 Thermal . | . . . Explosive . | . . . Electromagnetic 70 | . 15 55 Robot Hit Streak 11 | . 11 10 Robot Miss Streak 4 | . 1 4 Penetration Max . | . . . Secondary Targets 3 | . 1 2 Max Gunslinging Chain 1 | . 1 1 Shots Hit Robots 80 | . 24 56 Core Hits 45 | . 11 34 Critical Kills . | . . . Critical Parts Destroyed . | . . . Critical Strikes . | . . . Melee Attacks . | . . . Impact . | . . . Slashing . | . . . Piercing . | . . . Sneak Attacks . | . . . Combat Hostiles . | . . . Follow-up Attacks . | . . . Damage Inflicted 1640 | . 419 1221 Guns 1266 | . 317 949 Cannons . | . . . Explosions 358 | . 102 256 Melee . | . . . Ramming 16 | . . 16 Kinetic 284 | . 131 153 Thermal 358 | . 102 256 Explosive . | . . . Electromagnetic 982 | . 186 796 Impact . | . . . Slashing . | . . . Piercing . | . . . Highest Corruption . | . . . Average Corruption . | . . . Corruption Purged . | . . . Corruption Blocked . | . . . Overload Shots . | . . . Overflow Damage . | . . . Projectiles . | . . . Explosions . | . . . Melee . | . . . Knockbacks . | . . . Impact . | . . . Kinetic . | . . . Secondary . | . . . Self-Inflicted Damage 96 | . . 96 Shots 4 | . . 4 Rammed 3 | . . 3 Targets Rammed 3 | . . 3 Kicked . | . . . Crushed . | . . . Highest Temperature 198 | . 54 198 Average Temperature 56 | . 29 64 Received Heat Transfer 366 | . 150 216 Siege Activations . | . . . Robots Corrupted . | . . . Combat Hostiles . | . . . Parts Fried 1 | . . 1 Impact Corruptions . | . . . Robots Melted . | . . . Combat Hostiles . | . . . Parts Melted . | . . . Heat Transferred 350 | . 100 250 Parts Sabotaged . | . . . Parts Stolen . | . . . Parts Stripped . | . . . Power Chain Reactions 5 | . 1 4 Alert | -11 -10 -9 ------- Run | Yrd Mat Mat Peak Influence 412 | . 170 412 Initial 71 | . . 71 Average 190 | . 89 240 Maximum Alert Level 2 | . . 2 Low Security (%) 47 | 100 100 24 Level 1 51 | . . 74 Level 2 1 | . . 1 Level 3 . | . . . Level 4 . | . . . Level 5 . | . . . High Security . | . . . Max Security . | . . . Squads Dispatched 4 | . . 4 Investigation 1 | . . 1 Extermination . | . . . Reinforcement 3 | . . 3 Assault . | . . . Garrison . | . . . Intercept . | . . . Searches Triggered . | . . . Construction Impeded . | . . . Haulers Reinforced . | . . . Active Scanning Responses . | . . . Cargo Convoy Interrupts . | . . . Stealth | -11 -10 -9 --------- Run | Yrd Mat Mat Distress Signals 1 | . . 1 Communications Jammed . | . . . Distress Signals . | . . . Times Spotted 33 | . 8 25 Peak Tracking Total 4 | . 4 4 Tactical Retreats 2 | . . 2 Traps | -11 -10 -9 ------- Run | Yrd Mat Mat Traps Triggered 1 | . . 1 Indirectly . | . . . Trap Hack Attempts . | . . . Triggered . | . . . Disarmed . | . . . Reprogrammed . | . . . Reused . | . . . Traps Extracted . | . . . Installed . | . . . Triggered . | . . . Machines | -11 -10 -9 ---------- Run | Yrd Mat Mat Machines Disabled 1 | . . 1 Max in Single Turn 1 | . . 1 Machines Repaired . | . . . Machines Dismantled . | . . . Machines Sabotaged . | . . . Overloaded Fab Kills . | . . . Hacking | -11 -10 -9 --------- Run | Yrd Mat Mat Machines Accessed 1 | . . 1 Terminals 1 | . . 1 Fabricators . | . . . Repair Stations . | . . . Recycling Units . | . . . Scanalyzers . | . . . Garrison Access . | . . . Total Hacks 3 | . . 3 Successful 1 | . . 1 Failed 2 | . . 2 Catastrophic 1 | . . 1 Database Lockouts . | . . . Manual . | . . . Terminals 3 | . . 3 Fabricators . | . . . Repair Stations . | . . . Recycling Units . | . . . Scanalyzers . | . . . Garrison Access . | . . . Terminal Hacks 1 | . . 1 Zone Layout 1 | . . 1 Fabricator Hacks . | . . . Repair Station Hacks . | . . . Recycling Unit Hacks . | . . . Scanalyzer . | . . . Garrison Access Hacks . | . . . Unauthorized Hacks . | . . . Terminals . | . . . Fabricators . | . . . Repair Stations . | . . . Recycling Units . | . . . Scanalyzers . | . . . Garrison Access . | . . . Data Cores Recovered 1 | . . 1 Used . | . . . Hacking Detections 1 | . . 1 Full Trace Events . | . . . Feedback Events . | . . . Feedback Blocked . | . . . Robot Schematics Acquired . | . . . Robots Built . | . . . Authchips . | . . . Time . | . . . Total Robot Build Rating . | . . . Part Schematics Acquired . | . . . Parts Built . | . . . Authchips . | . . . Time . | . . . Total Part Build Rating . | . . . Parts Repaired . | . . . Time . | . . . Parts Recycled . | . . . Recycled Matter . | . . . Retrieved Matter . | . . . Retrieved Components . | . . . Parts Scanalyzed . | . . . Part Schematics Acquired . | . . . Parts Damaged . | . . . Bothacking | -11 -10 -9 ------------ Run | Yrd Mat Mat Used RIF Installer . | . . . Robots Hacked . | . . . Non-combat . | . . . Combat . | . . . Robot Hacks Applied . | . . . Relay Couplers Released . | . . . Fabnet Peak Effective % . | . . . Robots Rewired . | . . . Allies Hacked . | . . . Hacks Repelled . | . . . Allies | -11 -10 -9 -------- Run | Yrd Mat Mat Total Allies . | . . . Largest Group . | . . . Highest-Rated Group . | . . . Highest-Rated Ally . | . . . Total Orders . | . . . Ally Attacks . | . . . Total Damage . | . . . Kills . | . . . Allies Corrupted . | . . . Allies Melted . | . . . Intel | -11 -10 -9 ------- Run | Yrd Mat Mat Robot Analysis Total . | . . . Derelict Logs Recovered . | . . . Drone Launches . | . . . Drone Recoveries . | . . . Exploration | -11 -10 -9 ------------- Run | Yrd Mat Mat Turns Passed 1595 | 84 396 1115 Spaces Moved 780 | 65 209 506 Core 32 | 31 . 1 Treads 736 | 34 209 493 Legs 12 | . . 12 Wheels . | . . . Hover . | . . . Flight . | . . . Fastest Speed 50 | 50 160 160 Average Speed 160 | 107 160 167 Slowest Speed 600 | 160 160 600 Overloaded Moves . | . . . Propulsion Burnouts . | . . . Robots Hopped . | . . . Cave-ins Triggered . | . . . Exploration Rate (%) 36 | 4 44 60 Regions Visited 2 Branch Regions . Pre-discovered Areas . | . . . Known Exits Taken . | . . . Unknown Exits Taken 2 | 1 1 . Scrap Searched . | . . . Spaces Dug . | . . . Terrain Destroyed 13 | . 4 9 Melee . | . . . Projectile . | . . . AOE 13 | . 4 9 Terrain Rammed . | . . . Walls Destroyed . | . . . Machines Disabled . | . . . Actions | -11 -10 -9 --------- Run | Yrd Mat Mat Total 1025 | 80 241 704 Wait 141 | . 12 129 Move 778 | 64 208 506 Hop . | . . . Pick Up 25 | 8 3 14 Fast Attach . | . . . Attach 16 | 7 1 8 Detach 1 | . . 1 Swap 3 | . 1 2 Drop 8 | 1 1 6 Fire 50 | . 15 35 Melee . | . . . Ram . | . . . Kick . | . . . Crush 3 | . . 3 Escape Stasis . | . . . Rewire . | . . . Trap . | . . . Miscellaneous . | . . . Route ------- -11/Scrapyard -10/Materials (discovered 2 exits: *Mat / [*Min]) -9/Materials (discovered 2 exits: *Min x2) History --------- Turn | Location | Event 6 | -11/Scrapyard | Discovered new exit (range 15) 85 | -11/Scrapyard | Entered Materials 278 | -10/Materials | Discovered new exit (range 16) 315 | -10/Materials | Build established: Mutant 470 | -10/Materials | Discovered new exit (range 7) 481 | -10/Materials | Entered another Materials area 481 | -9/Materials | Evolved 2 slots: Utility x1, Weapon x1 884 | -9/Materials | Discovered new exit (range 16) 1272 | -9/Materials | Build established: Tank 1465 | -9/Materials | Discovered new exit (range 8) 1504 | -9/Materials | Identified exit to Mines 1596 | -9/Materials | Self-destructed Last Messages --------------- 01460_ Slammed into K-01 Serf. 01462_ Chain reaction triggered in Ion Engine. 01462_ G-34 Mercenary destroyed. 01462_ R-06 Scavenger destroyed. 01462_ K-01 Serf destroyed. 01465_ EXIT=FOUND 01467_ U-05 Engineer lays Concrete. 01470_ U-05 Engineer builds a Door. 01470_ U-05 Engineer builds a Wall. 01471_ U-05 Engineer lays Concrete. 01474_ U-05 Engineer builds a Wall. 01480_ U-05 Engineer lays Concrete. 01488_ Slammed into A-02 Transporter. 01504_ EXIT=IDENTIFIED: MINES 01519_ R-06 Scavenger inserts Lgt. Ion Engine into recycling unit. 01520_ Recycling unit begins recycling process. 01553_ Acquired Grenade Launcher. 01590_ U-05 Engineer works on Integration Channel. Map ----- +----------------------------------------------------+ | ?????????????????????????????????????????????????? | | ???????????????????????????????????????? ??????? | | ???????????????????????????????????????# #?????? | | ???????????????????????????????????????# #?????? | | ???????????????????????????????????????# #?????? | | ???????????????????????????????????????# #?????? | | ??????????????????????????? ??????????+ % #?????? | | ????????????????????????? ? ??????????# #?????? | | ???????????????????? ?"""" #?????????# % #?????? | | ?????????????????? ""T " ?????????# %#?????? | | ???????????????? #?????????# #?????? | | ??????????????? #??########^ #?????? | | ??????????????? #??# # ####### | | ??????????????? #??# T #% # | | ?????????????? u % #??# ! # # "" | | ??????????????? < $ #??# # # Y" | | ???????????????? #??# + + ! "" | | ???????????????? #??# # # | | ????????????????? t #??###+#### % ####### | | ?????????????????"" """ ###### ### ###### | | ??????????? =*% """""""" % | | ?????????? %! """"" % % % | | ?????????? **= %% | | ?????????? =%!% k ########## ##### | | ?????????????######### #?????######+####### | | ?????????????????????####@####?????# #""" | | ??????????????????????? ??????##= """ #" | | ????????????????????? """ ! #????# "R" #"| | | ????????????????????# """ #????## " " #"" | | ????????????????????# """ #?????# """ ==#"! | | ????????????????????# #?????# """ !%#" | | ????????????????????#![! #?????# """ *%[#""" | | ????????????????????#[[! ""Y#?????# =%#### | | ????????????????????#?! S"" ?????#########/##?# | | ???????????????????????? ?" #????????????## ##?# | | ????????????????????????????##????##########%#??# | | ??????????????????????????????????? ## #### | | ??????????????????????????????????? """"" ## | | ??????????????????????????????????? """""=# | | ??????????????????????????????????? """""%+ | | ??????????????????????????????????? """"" # """ | | ????????????????????????????????????""""" # """ | | ????????????????????????????????????""""" # """ | | ????????????????????????????????????""""" # | | ????????????????????????????????????? # | | ?????????????????????????????????????###### """ | | ??????????????????????????????????????????# """ | | ????????????????????????????????########### """ | | ????????????????????????????????# | | ????????????????????????????????# | +----------------------------------------------------+ Best States ------------- Heat Dissipation 28 Energy Generation 10 Energy Capacity 250 Matter Stores 300 Matter Capacity 300 Sight Range 16 Terrain Scan Density 10 Armor Coverage 150 Core Shielding 20 Evasion (%) 50 Recoil Reduction 2 Item Schematics ----------------- None Robot Schematics ------------------ None Fabricated ------------ Nothing Alien Tech Used ----------------- None Achievements -------------- None Challenges ------------ None Game ------ Seed CoolantDrainedSpoofer Manual? 0 Play Time 00:11:05 Cumulative 13.7 hours Start 2025.02.26 @ 17:34:32 End 2025.02.28 @ 13:08:21 Sessions 3 Manual Loads 0 Difficulty Rogue Special Mode None Game No. 48 Rogue 48 Adventurer 0 Explorer 0 Win Type - Total 0 Types 0/0/0/0/0/0/0/0/0 Lore% 9 Gallery% 15 Achievement% 15 Wizard Run 0 Options --------- Layout 1 ASCII 0 Keyboard 0 Movement Arrows Keybinds 0 Fullscreen 2 Font 24/Smallcaps Map View 50x35 Zoom Use 0% Tactical HUD 1 Map Filters NONE Filters NONE Steam 1 RUN: a532fe02-0dc1-47cd-a14c-2282bee598eb